bitfinex/quotes_ETHUSD_20250629
["timestamp","ask_amount","ask_price","bid_price","bid_amount"]
[1751184516716,22.60365682,2440.3,2440.2,0.8291]
[1751184522248,14.30265682,2440.3,2440.2,0.8291]
[1751184522547,6.8128,2440.3,2440.2,1.04121]
[1751184522745,6.8128,2440.3,2440.2,0.8291]
[1751184523346,0.2048,2440.3,2440.2,0.8291]
[1751184523524,10.91065682,2440.3,2440.2,0.8291]
[1751184523713,6.8128,2440.3,2440.2,0.8291]
[1751184524857,10.91065682,2440.3,2440.2,0.8291]
[1751184525010,4.30265682,2440.3,2440.2,0.8291]
[1751184525526,10.90965682,2440.3,2440.2,0.8291]
[1751184536072,4.30265682,2440.3,2440.2,0.8291]
[1751184536277,10.90465682,2440.3,2440.2,0.8291]
[1751184537974,18.95285217,2440.3,2440.2,0.8291]
[1751184540690,10.90465682,2440.3,2440.2,0.8291]
[1751184542592,10.90265682,2440.3,2440.2,0.8291]
[1751184542958,18.95085217,2440.3,2440.2,0.002]
[1751184543171,12.58865682,2440.3,2440.2,0.002]
[1751184545881,4.30265682,2440.3,2440.2,0.002]
[1751184546083,10.90465682,2440.3,2440.2,0.002]
[1751184546470,18.95285217,2440.3,2440.2,0.002]
[1751184555531,20.63485217,2440.3,2440.2,0.002]
[1751184558942,4.30265682,2440.3,2440.2,0.002]
[1751184559240,10.90265682,2440.3,2440.2,0.002]
[1751184561933,4.30265682,2440.3,2440.2,0.002]
[1751184562237,10.90165682,2440.3,2440.2,0.002]
[1751184562442,4.30265682,2440.3,2440.2,0.773]
[1751184562642,10.90165682,2440.3,2440.2,0.773]
[1751184563841,4.30265682,2440.3,2440.2,0.773]
[1751184564039,10.90165682,2440.3,2440.2,0.773]
[1751184564517,4.30265682,2440.3,2440.2,0.773]
[1751184564718,10.90165682,2440.3,2440.2,0.773]
[1751184566744,0.2048,2440.3,2440.2,0.773]
[1751184568523,4.30265682,2440.3,2440.2,0.773]
[1751184570650,9.94608127,2440.3,2440.2,0.773]
[1751184582201,9.94608127,2440.3,2440.2,0.002]
[1751184592431,5.84822445,2440.3,2440.2,0.002]
[1751184594426,9.94608127,2440.3,2440.2,0.002]
[1751184595227,5.84822445,2440.3,2440.2,0.002]
[1751184595624,9.94608127,2440.3,2440.2,0.002]
[1751184597644,0.2048,2440.3,2440.2,0.002]
[1751184598617,0.2048,2440.3,2440.2,0.7731]
[1751184610156,0.2048,2440.3,2440.2,0.002]
[1751184611554,4.09745494,2440.6,2440.2,0.7928]
[1751184611756,4.30225494,2440.6,2440.2,0.7928]
[1751184614545,4.09756417,2440.5,2440.2,0.7928]
[1751184615542,4.30222774,2440.6,2440.2,0.7928]
[1751184617187,4.30222774,2440.6,2440.2,4.89078893]
[1751184618795,4.30222774,2440.6,2440.2,0.7928]
[1751184620762,4.09753527,2440.5,2440.2,0.7928]
[1751184624587,4.30228355,2440.6,2440.2,4.89082298]
[1751184626811,9.74053842,2440.8,2440.3,4.90057242]
[1751184627012,9.94533842,2440.8,2440.3,5.10537242]
[1751184628110,4.30191397,2440.8,2440.3,4.30257242]
[1751184628301,9.94533842,2440.8,2440.4,0.8028]
[1751184629904,4.09718867,2440.7,2440.4,0.8028]
[1751184632021,0.2048,2440.8,2440.4,0.8028]
[1751184632334,0.2048,2440.9,2440.6,0.8295]
[1751184632623,5.84822445,2440.9,2440.6,0.8295]
[1751184632992,9.9451106,2440.9,2440.6,0.8295]
[1751184633198,5.84822445,2440.9,2440.6,0.8295]
[1751184634860,9.94507567,2440.9,2440.6,0.8295]
[1751184635151,5.84822445,2440.9,2440.6,0.8295]
[1751184636455,0.2048,2440.9,2440.6,5.84979815]
[1751184637059,0.2048,2440.9,2440.6,1.75244823]
[1751184638260,0.2048,2440.9,2440.6,5.84979978]
[1751184639673,5.64342445,2441.2,2440.7,0.7579]
[1751184639861,0.2048,2441.1,2440.7,4.85497997]
[1751184640065,0.2048,2441.1,2440.7,5.77068837]
[1751184640262,0.2048,2441.1,2440.8,4.09697719]
[1751184640644,5.64342445,2441.2,2440.8,4.09697719]
[1751184641478,5.64342445,2441.2,2440.9,4.86809615]
[1751184642563,5.64342445,2441.2,2440.9,0.7713]
[1751184642804,0.001,2441.3,2441.1,0.7713]
[1751184643094,0.001,2441.3,2441.2,4.30114605]
[1751184643642,0.001,2441.3,2441.2,5.07244605]
[1751184647479,0.001,2441.3,2441.2,5.62244605]
[1751184647781,0.001,2441.3,2441.2,6.81112213]
[1751184648484,0.001,2441.3,2441.2,13.40512213]
[1751184654510,0.001,2441.3,2441.2,2.16477608]
[1751184654798,0.001,2441.3,2441.2,7.5691]
[1751184654951,0.001,2441.3,2441.2,0.9761]
[1751184655153,0.001,2441.3,2441.2,7.5691]
[1751184655688,0.001,2441.3,2441.2,6.7978]
[1751184655992,0.001,2441.3,2441.2,6.593]
[1751184657286,0.001,2441.3,2441.2,7.3563]
[1751184659187,0.001,2441.3,2441.2,6.593]
[1751184660793,0.001,2441.3,2441.2,10.68934605]
[1751184664128,0.001,2441.3,2441.2,6.592]
[1751184665095,0.001,2441.3,2441.2,10.68834605]
[1751184665729,0.001,2441.3,2441.2,6.592]
[1751184667814,0.001,2441.3,2441.2,10.68834605]
[1751184670945,0.001,2441.3,2441.2,12.43163446]
[1751184671252,0.001,2441.3,2441.2,12.63643446]
[1751184671445,0.001,2441.3,2441.2,13.41353446]
[1751184682959,0.001,2441.3,2441.2,13.96353446]
[1751184687464,0.001,2441.3,2441.2,15.09253446]
[1751184695519,0.001,2441.3,2441.2,6.82153446]
[1751184695818,0.001,2441.3,2441.2,15.09253446]
[1751184699316,0.001,2441.3,2441.2,15.64253446]
[1751184699493,0.001,2441.3,2441.2,15.43773446]
[1751184701826,0.001,2441.3,2441.2,25.43773446]
[1751184706439,0.001,2441.3,2441.2,17.16673446]
[1751184706738,0.001,2441.3,2441.2,25.43573446]
[1751184707599,0.001,2441.3,2441.2,17.16673446]
[1751184707834,0.001,2441.3,2441.2,25.43573446]
[1751184708435,0.001,2441.3,2441.2,4.09634605]
[1751184708742,0.001,2441.3,2441.2,12.36534605]
[1751184709453,0.001,2441.3,2441.2,12.57014605]
[1751184709748,0.001,2441.3,2441.2,5.98014605]
[1751184709954,0.001,2441.3,2441.2,12.57014605]
[1751184710930,0.001,2441.3,2441.2,8.4738]
[1751184712567,0.001,2441.3,2441.2,12.57014605]
[1751184725874,0.001,2441.3,2441.2,0.2048]
[1751184726073,0.001,2441.3,2441.1,1.679]
[1751184726376,0.001,2441.3,2441.2,6.59]
[1751184727781,0.001,2441.3,2441.1,0.2048]
[1751184727949,0.001,2441.3,2441.2,6.59]
[1751184729183,0.1525,2441.2,2441.1,0.2048]
[1751184729478,0.1525,2441.2,2441.1,6.7948]
[1751184730179,0.1525,2441.2,2441.1,0.2048]
[1751184730349,0.2048,2441.1,2440.7,5.980979]
[1751184730779,0.2048,2441.1,2440.8,6.59]
[1751184732952,4.30140779,2441.1,2440.7,0.2048]
[1751184733151,4.30140779,2441.1,2440.8,6.59]
[1751184733584,4.30140779,2441.1,2440.7,0.2048]
[1751184733786,0.1525,2441.0,2440.8,6.59]
[1751184735580,0.1525,2441.0,2440.7,5.98097515]
[1751184735768,0.1525,2441.0,2440.8,6.59]
[1751184738082,0.1525,2441.0,2440.7,4.30197515]
[1751184738276,0.1525,2441.0,2440.8,6.59]
[1751184740800,0.1525,2441.0,2440.9,6.59]
[1751184741504,0.1525,2441.0,2440.8,6.59]
[1751184748607,0.2048,2441.1,2440.8,10.68698557]
[1751184750237,0.2048,2441.1,2440.8,6.59]
[1751184751129,0.2048,2441.1,2440.8,4.09701632]
[1751184751335,0.2048,2441.1,2440.9,6.59]
[1751184758407,0.2048,2441.1,2440.9,10.68676379]
[1751184759031,0.2048,2441.1,2440.9,6.59]
[1751184759231,0.001,2441.3,2440.9,10.68681812]
[1751184759419,0.2058,2441.3,2440.9,10.68681812]
[1751184759805,4.30200363,2441.3,2440.9,10.68681812]
[1751184760447,4.30200363,2441.3,2440.9,6.59]
[1751184761440,0.2058,2441.3,2440.9,10.68673174]
[1751184761644,0.001,2441.3,2441.0,0.2048]
[1751184765230,4.09717967,2441.3,2441.0,0.2048]
[1751184770032,0.001,2441.3,2441.0,0.2048]
[1751184772483,4.09720085,2441.3,2441.0,0.2048]
[1751184773974,4.09720085,2441.3,2441.1,6.589]
[1751184774165,0.001,2441.3,2441.1,6.589]
[1751184774466,4.09717826,2441.3,2441.2,6.589]
[1751184780873,0.001,2441.3,2441.2,6.589]
[1751184781380,0.001,2441.3,2441.2,7.3897]
[1751184782357,0.001,2441.3,2441.2,6.589]
[1751184782843,4.09717826,2441.3,2441.2,6.589]
[1751184783243,4.09717826,2441.3,2441.1,6.589]
[1751184785078,4.09717826,2441.3,2441.0,1.0055]
[1751184785248,4.09635422,2441.2,2441.1,6.589]
[1751184786947,4.09635422,2441.2,2441.0,0.2048]
[1751184787245,4.09635422,2441.2,2441.0,6.7938]
[1751184787781,4.09635422,2441.2,2441.0,0.2048]
[1751184788086,4.09676375,2441.0,2440.9,6.588]
[1751184788288,4.0965875,2441.1,2440.9,6.588]
[1751184788582,4.09669946,2441.0,2440.8,6.588]
[1751184790275,4.09669946,2441.0,2440.7,0.2048]
[1751184790451,4.09669946,2441.0,2440.8,6.588]
[1751184791055,4.09658832,2441.1,2440.8,6.588]
[1751184791258,4.09670253,2441.0,2440.7,0.2048]
[1751184791456,4.09670253,2441.0,2440.8,6.588]
[1751184797597,4.09684952,2440.9,2440.7,0.2048]
[1751184797794,4.09701737,2440.8,2440.7,0.2048]
[1751184798089,4.09701737,2440.8,2440.4,6.7928]
[1751184798090,4.09718523,2440.7,2440.4,6.7928]
[1751184801513,4.09738603,2440.6,2440.4,0.2048]
[1751184801692,4.09738603,2440.6,2440.4,6.7928]
[1751184802004,4.09727174,2440.7,2440.4,6.7928]
[1751184803101,4.09727174,2440.7,2440.4,0.2048]
[1751184803273,4.09727174,2440.7,2440.4,6.7928]
[1751184805912,4.24961578,2440.8,2440.4,6.7928]
[1751184806411,8.20811746,2440.8,2440.4,0.2048]
[1751184806600,4.09752099,2440.5,2440.4,6.588]
[1751184807907,4.09752099,2440.5,2440.2,2.6717]
[1751184808115,4.09752099,2440.5,2440.3,6.589]
[1751184808507,4.09771421,2440.4,2440.3,6.589]
[1751184809037,4.09771421,2440.4,2440.2,0.2068]
[1751184809312,4.09761824,2440.5,2440.2,0.2068]
[1751184809611,4.09761824,2440.5,2440.3,6.589]
[1751184809806,4.3021943,2440.6,2440.2,0.2068]
[1751184809984,0.2048,2440.4,2440.2,6.591]
[1751184810184,4.30251919,2440.4,2440.2,6.591]
[1751184811035,0.2048,2440.4,2440.2,6.591]
[1751184821446,0.2048,2440.4,2440.2,10.68900178]
[1751184821747,0.2048,2440.4,2440.3,4.87655682]
[1751184821910,0.2048,2440.8,2440.4,4.0976153]
[1751184822107,4.30181954,2440.8,2440.5,6.589]
[1751184826602,0.2048,2440.8,2440.5,6.589]
[1751184826937,0.2048,2440.8,2440.6,0.7707]
[1751184835153,0.2048,2440.8,2440.5,6.589]
[1751184835519,0.2048,2440.8,2440.5,10.68651872]
[1751184838457,0.2048,2440.8,2440.5,6.589]
[1751184839657,4.30185971,2440.8,2440.5,6.589]
[1751184839861,4.09721949,2440.7,2440.5,6.589]
[1751184840427,4.09721949,2440.7,2440.3,1.0181]
[1751184840728,4.09721949,2440.7,2440.4,6.588]
[1751184841658,4.09738587,2440.6,2440.3,1.0181]
[1751184841955,4.09769661,2440.4,2440.2,0.002]
[1751184842337,4.09760552,2440.5,2440.3,6.588]
[1751184842533,4.09769666,2440.4,2440.2,6.59]
[1751184842941,4.09769666,2440.4,2440.2,0.002]
[1751184843135,4.09769666,2440.4,2440.2,6.59]
[1751184844276,4.09785682,2440.3,2440.2,6.59]
[1751184844732,4.09774273,2440.4,2440.2,6.59]
[1751184845775,4.09774273,2440.4,2440.2,0.002]
[1751184845984,4.09774273,2440.4,2440.2,6.59]
[1751184846961,4.09785682,2440.3,2440.2,0.002]
[1751184847161,4.09785682,2440.3,2440.2,6.59]
[1751184847365,4.30256503,2440.4,2440.2,6.59]
[1751184848854,0.2048,2440.4,2440.2,6.59]
[1751184849586,4.30251178,2440.4,2440.2,6.59]
[1751184849767,4.30251178,2440.4,2440.2,0.002]
[1751184849959,4.30251178,2440.4,2440.2,6.59]
[1751184852589,4.30251178,2440.4,2440.2,0.002]
[1751184853458,4.8869245,2440.4,2440.2,0.002]
[1751184853665,4.30257457,2440.4,2440.2,0.002]
[1751184854111,4.09785682,2440.3,2440.2,0.002]
[1751184860475,4.30256422,2440.4,2440.2,0.002]
[1751184861411,4.09785682,2440.3,2440.2,0.002]
[1751184862217,4.30258868,2440.4,2440.2,0.002]
[1751184862908,0.2048,2440.4,2440.2,0.002]
[1751184865013,4.30250065,2440.4,2440.2,0.002]
[1751184866182,0.2048,2440.4,2440.2,0.002]
[1751184866511,4.30250468,2440.4,2440.2,0.002]
[1751184870314,0.2048,2440.4,2440.2,0.002]
[1751184878130,0.2048,2440.4,2440.2,6.59]
[1751184878820,4.24940778,2440.9,2440.4,4.0976154]
[1751184879042,0.2048,2440.8,2440.4,4.0975708]
[1751184881648,0.2048,2440.8,2440.4,4.09767432]
[1751184882223,0.2048,2440.8,2440.6,0.8132]
[1751184884050,0.2048,2440.8,2440.6,4.9104656]
[1751184888318,9.89205937,2441.3,2440.8,4.09695694]
[1751184888518,0.2048,2441.0,2440.8,4.09695694]
[1751184888938,0.2048,2441.0,2440.7,10.68412508]
[1751184889110,0.2048,2441.0,2440.7,6.587]
[1751184889312,0.2048,2441.0,2440.8,1.26030643]
[1751184889511,0.2048,2441.0,2440.7,6.587]
[1751184890025,0.2048,2441.0,2440.7,10.68418167]
[1751184896555,0.2048,2441.0,2440.7,6.587]
[1751184897657,0.2048,2441.0,2440.7,10.68418071]
[1751184900363,0.2048,2441.0,2440.7,6.587]
[1751184901463,0.2048,2441.0,2440.7,10.68417451]
[1751184903467,0.2048,2441.0,2440.8,4.09699881]
[1751184903760,19.89200509,2441.3,2440.8,4.09699881]
[1751184903950,0.2048,2441.2,2440.8,4.09699881]
[1751184905360,4.30119009,2441.2,2440.8,4.09699881]
[1751184906062,4.30119009,2441.2,2440.7,12.55892191]
[1751184908776,4.30119009,2441.2,2440.8,4.09700996]
[1751184908947,0.2048,2441.2,2440.8,4.09700996]
[1751184909745,0.2048,2441.2,2440.9,4.8638778]
[1751184909991,0.2048,2441.2,2441.0,4.09660695]
[1751184910284,0.2048,2441.2,2441.0,6.586]
[1751184910587,0.001,2441.3,2441.2,4.09634605]
[1751184910881,0.001,2441.3,2441.1,4.86354055]
[1751184911065,0.001,2441.3,2441.1,6.43863657]
[1751184911269,0.001,2441.3,2441.2,4.09634605]
[1751184911448,0.001,2441.3,2441.2,4.30114605]
[1751184914551,0.001,2441.3,2441.2,0.2048]
[1751184931507,0.001,2441.3,2441.2,6.7888]
[1751184952828,0.001,2441.3,2441.2,0.2048]
[1751184952995,0.001,2441.3,2441.2,6.7878]
[1751184972260,0.001,2441.3,2441.2,0.2048]
[1751184972445,0.001,2441.3,2441.2,6.7868]
[1751184974055,0.001,2441.3,2441.2,0.2048]
[1751184974272,0.001,2441.3,2441.2,6.7868]
[1751184977672,0.001,2441.3,2441.2,0.2048]
[1751184977874,0.001,2441.3,2441.2,6.7868]
[1751184978274,0.001,2441.3,2441.2,0.2048]
[1751184978761,0.001,2441.3,2441.2,6.7858]
[1751184979876,0.001,2441.3,2441.2,0.2048]
[1751184980058,0.001,2441.3,2441.2,6.7858]
[1751184982076,9.72909973,2441.5,2441.2,6.7858]
[1751184982246,9.72909973,2441.5,2441.3,6.581]
[1751184982453,5.63325142,2441.5,2441.3,6.581]
[1751184983193,5.63325142,2441.5,2441.2,0.2048]
[1751184983405,5.63325142,2441.5,2441.3,6.581]
[1751184984195,5.63325142,2441.5,2441.2,0.2048]
[1751184984367,9.72910179,2441.5,2441.2,6.7858]
[1751184985279,9.94302217,2441.6,2441.2,6.7858]
[1751184994827,5.84725142,2441.6,2441.2,10.88214219]
[1751184996029,9.94292971,2441.6,2441.2,10.88214219]
[1751184996332,5.84725142,2441.6,2441.2,10.88214219]
[1751184996742,0.205,2441.6,2441.3,4.0961627]
[1751185002640,0.205,2441.6,2441.4,4.09600207]
[1751185002843,0.205,2441.6,2441.3,4.0961]
[1751185003800,0.205,2441.6,2441.3,4.9122]
[1751185005838,0.205,2441.6,2441.3,0.8161]
[1751185010847,0.205,2441.6,2441.3,4.91226722]
[1751185011443,0.205,2441.6,2441.3,0.8161]
[1751185014913,0.205,2441.6,2441.3,4.9122363]
[1751185017145,0.205,2441.6,2441.4,4.09593545]
[1751185017347,0.001,2441.6,2441.4,5.67533263]
[1751185017518,0.001,2441.6,2441.4,5.88013263]
[1751185017844,0.001,2441.6,2441.5,4.09584271]
[1751185018253,0.001,2441.6,2441.4,4.30072012]
[1751185021162,0.001,2441.6,2441.4,0.2048]
[1751185021668,0.001,2441.6,2441.4,4.30081027]
[1751185028173,0.001,2441.6,2441.5,4.09584271]
[1751185029466,0.001,2441.6,2441.4,4.3007207]
[1751185029774,0.001,2441.6,2441.5,11.45554271]
[1751185033048,0.001,2441.6,2441.5,13.03118716]
[1751185034171,0.001,2441.6,2441.5,13.23518716]
[1751185038347,0.001,2441.6,2441.5,6.65718716]
[1751185038552,0.001,2441.6,2441.5,13.23518716]
[1751185043282,0.001,2441.6,2441.5,13.78518716]
[1751185046385,0.001,2441.6,2441.5,15.45518716]
[1751185046586,0.001,2441.6,2441.5,1.77964445]
[1751185046885,0.001,2441.6,2441.5,6.577]
[1751185047984,0.001,2441.6,2441.4,4.30000131]
[1751185048287,0.001,2441.6,2441.5,6.577]
[1751185052005,0.001,2441.6,2441.4,0.204]
[1751185052006,4.09584271,2441.5,2441.4,0.204]
[1751185052205,4.09584271,2441.5,2441.2,1.8758]
[1751185052206,4.24834271,2441.5,2441.2,1.8758]
[1751185052365,4.24834271,2441.5,2441.3,6.577]
[1751185055094,0.1525,2441.5,2441.3,6.577]
[1751185055299,4.24834461,2441.5,2441.4,6.577]
[1751185057605,4.24834461,2441.5,2441.2,0.2048]
[1751185057801,4.09617826,2441.3,2441.0,0.2048]
[1751185058001,4.09617826,2441.3,2441.1,6.577]
[1751185060417,5.64225142,2441.4,2441.1,6.577]
[1751185060615,9.73835336,2441.4,2441.0,0.2048]
[1751185060797,9.73835336,2441.4,2441.0,6.7818]
[1751185065944,5.64225142,2441.4,2441.0,10.8784701]
[1751185066433,9.73828449,2441.4,2441.0,10.8784701]
[1751185073038,5.64225142,2441.4,2441.0,10.8784701]
[1751185073837,9.73835646,2441.4,2441.0,0.2048]
[1751185074142,9.73835646,2441.4,2441.1,6.577]
[1751185075843,9.73835646,2441.4,2441.1,6.57601415]
[1751185079952,5.64225142,2441.4,2441.1,6.57601415]
[1751185083350,4.24877351,2441.3,2441.1,6.577]
[1751185084419,0.1525,2441.3,2441.1,6.577]
[1751185086623,0.1525,2441.3,2441.0,4.30145714]
[1751185086924,0.1525,2441.3,2441.1,6.577]
[1751185088556,0.1525,2441.3,2441.0,10.87847522]
[1751185088747,4.24868922,2441.3,2441.0,6.7818]
[1751185089257,0.1525,2441.3,2441.0,6.7818]
[1751185089661,0.1525,2441.3,2441.0,0.2048]
[1751185089849,9.73860608,2441.2,2440.7,4.91546233]
[1751185090026,5.84705142,2441.2,2440.8,12.5488039]
[1751185090358,0.0011,2441.0,2440.8,8.4518]
[1751185092659,9.89254154,2441.0,2440.8,0.2048]
[1751185092862,4.09691995,2440.9,2440.7,6.576]
[1751185093968,10.09742924,2441.0,2440.7,6.576]
[1751185094438,0.2059,2441.0,2440.7,6.576]
[1751185099065,0.2048,2441.0,2440.7,6.5749]
[1751185099670,4.30148963,2441.0,2440.7,6.5749]
[1751185100372,0.2048,2441.0,2440.7,6.5749]
[1751185100665,9.73930506,2440.8,2440.6,6.7818]
[1751185103073,5.64225142,2440.8,2440.6,0.2048]
[1751185103450,4.09718523,2440.7,2440.6,0.2048]
[1751185103851,4.09718523,2440.7,2440.4,0.002]
[1751185103852,4.09742558,2440.6,2440.4,0.002]
[1751185104176,9.89218574,2440.6,2440.4,6.7838]
[1751185105167,9.89218574,2440.6,2440.4,0.2068]
[1751185106376,5.64225142,2440.6,2440.4,0.2068]
[1751185107762,4.09752099,2440.5,2440.4,0.2068]
[1751185108686,4.25002099,2440.5,2440.4,0.002]
[1751185108882,0.1525,2440.5,2440.4,0.002]
[1751185109083,0.2048,2440.6,2440.4,0.002]
[1751185111888,4.30215706,2440.6,2440.4,0.002]
[1751185115140,9.94440848,2440.6,2440.4,0.002]
[1751185116511,4.09752099,2440.5,2440.4,0.002]
[1751185117615,4.30232099,2440.5,2440.4,0.002]
[1751185118582,0.2048,2440.5,2440.4,0.002]
[1751185119710,5.64225142,2440.6,2440.4,0.002]
[1751185119909,5.84705142,2440.6,2440.4,0.002]
[1751185120609,9.94442551,2440.6,2440.4,0.002]
[1751185121008,0.2048,2440.6,2440.4,0.002]
[1751185121191,0.2048,2440.7,2440.4,0.782]
[1751185121512,4.30199257,2440.7,2440.4,0.782]
[1751185127014,0.2048,2440.7,2440.4,0.782]
[1751185127382,4.30200281,2440.7,2440.4,0.782]
[1751185128414,4.30199052,2440.7,2440.4,0.782]
[1751185133931,4.09739876,2440.6,2440.4,0.002]
[1751185137842,4.09752099,2440.5,2440.4,0.002]
[1751185139040,4.68187092,2440.5,2440.4,0.002]
[1751185139245,4.09752099,2440.5,2440.4,0.002]
[1751185146171,10.67452099,2440.5,2440.4,0.002]
[1751185146559,16.31746249,2440.5,2440.4,0.002]
[1751185147059,16.46996249,2440.5,2440.4,0.002]
[1751185147260,26.46996249,2440.5,2440.4,0.002]
[1751185150596,28.88961804,2440.5,2440.4,0.002]
[1751185160096,58.88961804,2440.5,2440.4,0.002]
[1751185162388,14.0976889,2440.4,2440.3,0.002]
[1751185162589,14.09785682,2440.3,2440.2,0.002]
[1751185162820,58.89195387,2440.3,2440.2,0.002]
[1751185163117,59.44195387,2440.3,2440.2,0.002]
[1751185164221,34.25069269,2440.1,2440.0,1.292]
[1751185164516,60.56528974,2440.1,2440.0,1.292]
[1751185165017,22.31328974,2440.1,2440.0,1.292]
[1751185165217,30.56628974,2440.1,2440.0,1.292]
[1751185165426,60.56628974,2440.1,2440.0,1.292]
[1751185172515,52.31328974,2440.1,2440.0,1.292]
[1751185172710,52.16078974,2440.1,2440.0,1.292]
[1751185172910,4.09819269,2440.1,2440.0,1.292]
[1751185173239,10.68119269,2440.1,2440.0,1.292]
[1751185173440,20.68119269,2440.1,2440.0,1.292]
[1751185174601,14.09819269,2440.1,2440.0,1.292]
[1751185174806,20.68219269,2440.1,2440.0,2.115]
[1751185179843,20.68219269,2440.1,2440.0,1.292]
[1751185183544,50.68219269,2440.1,2440.0,1.292]
[1751185184652,50.83469269,2440.1,2440.0,1.292]
[1751185188563,50.83469269,2440.1,2439.7,0.002]
[1751185188564,52.31379366,2439.8,2439.7,0.002]
[1751185188850,60.57879366,2439.8,2439.7,0.002]
[1751185190526,30.57879366,2439.8,2439.7,0.002]
[1751185190857,60.57879366,2439.8,2439.7,0.002]
[1751185193158,60.88712022,2439.8,2439.7,0.002]
[1751185201474,61.43712022,2439.8,2439.7,0.002]
[1751185204466,31.43712022,2439.8,2439.7,0.002]
[1751185204692,61.43712022,2439.8,2439.7,0.002]
[1751185210082,52.62212022,2439.8,2439.7,0.002]
[1751185210287,60.73562022,2439.8,2439.7,0.002]
[1751185217506,30.73562022,2439.8,2439.7,0.002]
[1751185226892,22.46962022,2439.8,2439.7,0.002]
[1751185227093,30.73362022,2439.8,2439.7,0.002]
[1751185229288,60.73362022,2439.8,2439.7,0.002]
[1751185232601,58.31915628,2439.8,2439.7,0.002]
[1751185236933,28.31915628,2439.8,2439.7,0.002]
[1751185237134,58.31915628,2439.8,2439.7,0.002]
[1751185241025,28.31915628,2439.8,2439.7,0.002]
[1751185250438,64.66978939,2439.8,2439.7,0.002]
[1751185251239,64.83391539,2439.8,2439.7,0.002]
[1751185253527,34.83391539,2439.8,2439.7,0.002]
[1751185253757,64.83391539,2439.8,2439.7,0.002]
[1751185268057,34.83391539,2439.8,2439.7,0.002]
[1751185268257,64.83391539,2439.8,2439.7,0.002]
[1751185268699,64.66978939,2439.8,2439.7,0.002]
[1751185269599,4.09920065,2439.5,2439.4,0.002]
[1751185269793,56.33233376,2439.5,2439.4,0.002]
[1751185282995,26.33233376,2439.5,2439.4,0.002]
[1751185283201,56.33233376,2439.5,2439.4,0.002]
[1751185283898,58.00733376,2439.5,2439.4,0.002]
[1751185287047,63.65346687,2439.5,2439.4,0.002]
[1751185288426,63.65346687,2439.5,2439.4,0.7907]
[1751185288815,58.00533376,2439.5,2439.4,0.7907]
[1751185292358,63.65346687,2439.5,2439.4,0.7907]
[1751185292645,58.00533376,2439.5,2439.4,0.7907]
[1751185292809,19.74733376,2439.5,2439.4,0.7907]
[1751185293011,28.00333376,2439.5,2439.4,0.7907]
[1751185297943,26.33033376,2439.5,2439.4,0.7907]
[1751185298242,28.00333376,2439.5,2439.4,0.7907]
[1751185298447,21.42033376,2439.5,2439.4,0.7907]
[1751185298666,28.00333376,2439.5,2439.4,0.7907]
[1751185299412,19.74733376,2439.5,2439.4,0.7907]
[1751185299724,26.33033376,2439.5,2439.4,0.7907]
[1751185303859,19.74733376,2439.5,2439.4,0.7907]
[1751185304066,26.33033376,2439.5,2439.4,0.7907]
[1751185305062,19.74733376,2439.5,2439.4,0.7907]
[1751185305363,26.33033376,2439.5,2439.4,0.7907]
[1751185320382,19.74733376,2439.5,2439.4,0.7907]
[1751185320587,26.33033376,2439.5,2439.4,0.7907]
[1751185327173,26.33033376,2439.5,2439.4,0.002]
[1751185327355,31.97846687,2439.5,2439.4,0.002]
[1751185327759,61.97846687,2439.5,2439.4,0.002]
[1751185338589,31.97846687,2439.5,2439.4,0.002]
[1751185338789,61.97846687,2439.5,2439.4,0.002]
[1751185341131,58.00333376,2439.5,2439.4,0.002]
[1751185341790,28.00333376,2439.5,2439.4,0.002]
[1751185342298,58.00333376,2439.5,2439.4,0.002]
[1751185343518,63.65146687,2439.5,2439.4,0.002]
[1751185344687,58.00333376,2439.5,2439.4,0.002]
[1751185346007,28.00333376,2439.5,2439.4,0.002]
[1751185350429,21.42033376,2439.5,2439.4,0.002]
[1751185350633,28.00333376,2439.5,2439.4,0.002]
[1751185355731,26.33033376,2439.5,2439.4,0.002]
[1751185360504,31.97846687,2439.5,2439.4,0.002]
[1751185361220,26.33033376,2439.5,2439.4,0.002]
[1751185362136,31.97846687,2439.5,2439.4,0.002]
[1751185367964,26.33033376,2439.5,2439.4,0.002]
[1751185373352,26.32933376,2439.5,2439.4,0.002]
[1751185381950,14.09920065,2439.5,2439.4,0.002]
[1751185382153,20.68120065,2439.5,2439.4,0.7995]
[1751185387071,20.68120065,2439.5,2439.4,0.002]
[1751185390093,14.09920065,2439.5,2439.4,0.002]
[1751185390297,20.68120065,2439.5,2439.4,0.002]
[1751185402303,10.0,2439.5,2439.4,0.8152]
[1751185402613,0.2048,2439.5,2439.4,1.30708953]
[1751185403005,10.0,2440.2,2439.4,1.30708953]
[1751185403208,0.2048,2439.9,2439.6,0.8132]
[1751185403384,5.64813311,2440.3,2439.8,4.09868295]
[1751185403385,0.2048,2440.1,2439.8,4.09868295]
[1751185403717,0.2048,2440.2,2439.9,0.8132]
[1751185405714,4.30282809,2440.2,2439.9,0.8132]
[1751185405916,4.30282809,2440.2,2439.9,1.3248683]
[1751185406920,0.2048,2440.2,2439.9,1.3248683]
[1751185407116,4.09828104,2440.1,2439.9,1.3248683]
[1751185407319,4.09828104,2440.1,2439.9,0.8132]
[1751185408696,12.36540327,2440.2,2439.9,0.8132]
[1751185408897,4.09820076,2440.1,2439.9,0.8132]
[1751185410018,4.09836065,2440.0,2439.9,0.8132]
[1751185411287,4.09836065,2440.0,2439.7,0.8311]